[Event "101st Irish Championship 2022"]
[Site "Dublin"]
[Date "2022.07.08"]
[Round "7.1"]
[White "Kanyamarala, Tarun"]
[Black "O`cuilleanain, Oisin"]
[Result "1-0"]
[ECO "E48"]
[WhiteElo "2379"]
[BlackElo "1936"]
[Annotator "RC"]
[PlyCount "57"]
[EventDate "2022.07.05"]
[EventType "swiss"]
[EventCountry "IRL"]
[SourceTitle "playchess.com"]
[Source "ChessBase"]
[SourceQuality "1"]
[TimeControl "40/6300+30:1800+30"]

1. d4 {[%emt 0:00:12]} Nf6 {[%emt 0:01:09]} 2. c4 {[%emt 0:00:11]} e6 {[%emt 0:00:13]} 3. Nc3 {[%emt 0:00:19]} Bb4 {[%emt 0:00:17]} 4. e3 {[%emt 0:00:11]} O-O {[%emt 0:00:24]} 5. Bd3 {[%emt 0:00:13]} c5 {[%emt 0:04:23]} 6. Nge2 {[%emt 0:02:22]} d5 {[%emt 0:06:14]} 7. cxd5 {[%emt 0:02:27]} cxd4 {[%emt 0:01:39]} 8. exd4 {[%emt 0:00:55]} Nxd5 {[%emt 0:00:59]} 9. O-O {[%emt 0:00:20]} Nc6 {[%emt 0:06:47]} 10. a3 {[%emt 0:00:10]} Bd6 {[%emt 0:04:08]} 11. Re1 {[%emt 0:00:09]} b6 {[%emt 0:02:13]} 12. Nxd5 {[%emt 0:16:01]} exd5 {[%emt 0:00:04]} 13. Bxh7+ {[%emt 0:00:52]} Kxh7 {[%emt 0:03:32]} 14. Qc2+ {[%emt 0:00:22]} g6 {[%emt 0:00:06]} 15. Qxc6 {[%emt 0:00:12]} Be6 {[%emt 0:00:14]} 16. Bf4 {[%emt 0:06:14]} Be7 {[%emt 0:00:07]} 17. Nc3 {[%emt 0:05:53]} Rc8 {[%emt 0:08:32]} 18. Qb7 {[%emt 0:04:27]} Bd6 {[%emt 0:01:54]} 19. Rxe6 {[%emt 0:13:35]} Bxf4 {[%emt 0:08:05]} 20. Re7 {[%emt 0:02:05]} Kg7 {[%emt 0:01:50]} 21. Rd7 {[%emt 0:07:25]} Qf6 {[%emt 0:01:29]} 22. Qxd5 {[%emt 0:01:20]} Bxh2+ {[%emt 0:11:58]} 23. Kxh2 {[%emt 0:07:11]} Qxf2 {[%emt 0:00:06]} 24. Qe5+ {[%emt 0:00:22]} Kh7 {[%emt 0:00:19]} 25. Qe2 {[%emt 0:05:05]} Qh4+ {[%emt 0:04:49]} 26. Kg1 {[%emt 0:00:28]} Rce8 {[%emt 0:00:07]} 27. Qf2 {[%emt 0:00:26]} Qg4 {[%emt 0:02:40]} 28. Rxf7+ {[%emt 0:01:27]} Kg8 {[%emt 0:00:06]} 29. Rf1 {[%emt 0:00:21]} 1-0

[Event "101st Irish Championship 2022"]
[Site "Dublin"]
[Date "2022.07.08"]
[Round "7.2"]
[White "Carroll, Peter"]
[Black "O`Gorman, Tom"]
[Result "1/2-1/2"]
[ECO "C47"]
[WhiteElo "2116"]
[BlackElo "2401"]
[Annotator "RC"]
[PlyCount "57"]
[EventDate "2022.07.05"]
[EventType "swiss"]
[EventCountry "IRL"]
[SourceTitle "playchess.com"]
[Source "ChessBase"]
[SourceQuality "1"]
[TimeControl "40/6300+30:1800+30"]

1. e4 {[%emt 0:18:24]} e5 {[%emt 0:00:24]} 2. Nf3 {[%emt 0:00:14]} Nc6 {[%emt 0:00:12]} 3. Nc3 {[%emt 0:00:09]} Nf6 {[%emt 0:00:16]} 4. d4 {[%emt 0:00:05]} exd4 {[%emt 0:12:14]} 5. Nxd4 {[%emt 0:00:30]} Bb4 {[%emt 0:00:21]} 6. Nxc6 {[%emt 0:00:27]} bxc6 {[%emt 0:00:06]} 7. Bd3 {[%emt 0:00:05]} d5 {[%emt 0:00:35]} 8. exd5 {[%emt 0:00:51]} O-O {[%emt 0:00:08]} 9. O-O {[%emt 0:00:40]} cxd5 {[%emt 0:00:09]} 10. Bg5 {[%emt 0:00:47]} c6 {[%emt 0:01:00]} 11. Qf3 {[%emt 0:00:10]} h6 {[%emt 0:01:13]} 12. Bxf6 {[%emt 0:11:42]} Qxf6 {[%emt 0:00:22]} 13. Qxf6 {[%emt 0:00:02]} gxf6 {[%emt 0:00:07]} 14. Ne2 {[%emt 0:00:07]} Re8 {[%emt 0:07:42]} 15. Nd4 {[%emt 0:07:18]} Bd7 {[%emt 0:02:13]} 16. Bf5 {[%emt 0:01:36]} Bxf5 {[%emt 0:01:32]} 17. Nxf5 {[%emt 0:00:04]} Re2 {[%emt 0:00:31]} 18. Nd4 {[%emt 0:00:45]} Rd2 {[%emt 0:04:08]} 19. Rad1 {[%emt 0:06:55]} Rxd1 {[%emt 0:01:15]} 20. Rxd1 {[%emt 0:00:01]} Rc8 {[%emt 0:00:29]} 21. c3 {[%emt 0:05:21]} Bc5 {[%emt 0:01:22]} 22. Kf1 {[%emt 0:01:40]} Kf8 {[%emt 0:16:49]} 23. Ke2 {[%emt 0:01:42]} Ke7 {[%emt 0:00:35]} 24. Kf1 {[%emt 0:57:55]} Kf8 25. Ke2 {[%emt 0:00:30]} Ke7 {[%emt 1:04:17]} 26. Kd3 {[%emt 0:00:30]} Bxd4 {[%emt 0:00:30]} 27. cxd4 {[%emt 0:00:30]} Kd6 {[%emt 0:00:30]} 28. Rc1 {[%emt 0:00:30]} Rb8 {[%emt 0:00:30]} 29. Rd1 {[%emt 0:00:30]} 1/2-1/2

[Event "101st Irish Championship 2022"]
[Site "Dublin"]
[Date "2022.07.08"]
[Round "7.3"]
[White "O`Donnell, Conor"]
[Black "Li, Henry"]
[Result "1/2-1/2"]
[ECO "E76"]
[WhiteElo "2269"]
[BlackElo "2319"]
[Annotator "RC"]
[PlyCount "95"]
[EventDate "2022.07.05"]
[EventType "swiss"]
[EventCountry "IRL"]
[SourceTitle "playchess.com"]
[Source "ChessBase"]
[SourceQuality "1"]
[TimeControl "40/6300+30:1800+30"]

1. d4 {[%emt 0:03:05]} Nf6 {[%emt 0:00:10]} 2. c4 {[%emt 0:00:11]} g6 {[%emt 0:00:09]} 3. Nc3 {[%emt 0:00:11]} Bg7 {[%emt 0:00:07]} 4. e4 {[%emt 0:00:08]} d6 {[%emt 0:00:38]} 5. f4 {[%emt 0:00:24]} O-O {[%emt 0:01:40]} 6. Nf3 {[%emt 0:00:07]} e5 {[%emt 0:00:35]} 7. fxe5 {[%emt 0:00:48]} dxe5 {[%emt 0:00:07]} 8. d5 {[%emt 0:00:10]} Na6 {[%emt 0:01:52]} 9. Bd3 {[%emt 0:01:00]} Nc5 {[%emt 0:11:14]} 10. O-O {[%emt 0:02:43]} Qe7 {[%emt 0:08:43]} 11. Bc2 {[%emt 0:04:47]} a5 {[%emt 0:02:41]} 12. Bg5 {[%emt 0:04:57]} h6 {[%emt 0:04:01]} 13. Be3 {[%emt 0:06:10]} Ng4 {[%emt 0:28:41]} 14. Bc1 {[%emt 0:11:07]} f5 {[%emt 0:06:54]} 15. Qe2 {[%emt 0:27:39]} f4 {[%emt 0:03:19]} 16. b3 {[%emt 0:00:53]} g5 {[%emt 0:01:24]} 17. h3 {[%emt 0:07:03]} Nf6 {[%emt 0:00:46]} 18. Ba3 {[%emt 0:00:03]} Bd7 {[%emt 0:08:04]} 19. Nb5 {[%emt 0:04:20]} Ne8 {[%emt 0:09:23]} 20. Ne1 {[%emt 0:03:56]} b6 {[%emt 0:01:58]} 21. Nd3 {[%emt 0:01:40]} Rf7 {[%emt 0:01:38]} 22. Bd1 {[%emt 0:02:52]} Bf8 {[%emt 0:02:56]} 23. Nxc5 {[%emt 0:05:40]} bxc5 {[%emt 0:00:15]} 24. Rc1 {[%emt 0:01:10]} Rg7 {[%emt 0:03:17]} 25. Rc3 {[%emt 0:04:38]} g4 {[%emt 0:04:33]} 26. hxg4 {[%emt 0:22:48]} Nf6 {[%emt 0:00:35]} 27. Qe1 {[%emt 0:00:00]} Bxg4 {[%emt 0:01:20]} 28. Bxg4 {[%emt 0:00:00]} Nxg4 {[%emt 0:00:14]} 29. Qd2 {[%emt 0:00:00]} Ne3 {[%emt 0:03:20]} 30. Rxe3 {[%emt 0:00:00]} fxe3 {[%emt 0:00:03]} 31. Qxe3 {[%emt 0:00:00]} Ra6 {[%emt 0:00:30]} 32. d6 {[%emt 0:00:00]} cxd6 {[%emt 0:01:21]} 33. Nc3 {[%emt 0:00:00]} Rf7 {[%emt 0:00:52]} 34. Re1 {[%emt 0:00:00]} Qg5 {[%emt 0:00:41]} 35. Qh3 {[%emt 0:00:00]} Raa7 {[%emt 0:01:03]} 36. Bc1 {[%emt 0:00:00]} Qg6 {[%emt 0:00:22]} 37. Re3 {[%emt 0:00:00]} Rg7 {[%emt 0:00:36]} 38. Nd5 {[%emt 0:02:16]} Raf7 {[%emt 0:00:41]} 39. Bd2 {[%emt 0:00:28]} a4 {[%emt 0:03:22]} 40. bxa4 {[%emt 0:00:07]} Qg4 {[%emt 0:02:32]} 41. Qxg4 {[%emt 0:32:13]} Rxg4 {[%emt 0:30:05]} 42. Ba5 {[%emt 0:00:00]} Be7 {[%emt 0:00:00]} 43. Bb6 {[%emt 0:00:00]} Bh4 {[%emt 0:00:00]} 44. Re2 {[%emt 0:00:00]} Bg3 {[%emt 0:00:00]} 45. Bd8 {[%emt 0:00:00]} Rb7 {[%emt 0:00:00]} 46. Bb6 {[%emt 0:00:00]} Rf7 {[%emt 0:00:00]} 47. Bd8 {[%emt 0:00:00]} Rb7 {[%emt 0:00:00]} 48. Bb6 {[%emt 0:00:00]} 1/2-1/2

[Event "101st Irish Championship 2022"]
[Site "Dublin"]
[Date "2022.07.08"]
[Round "7.4"]
[White "Daly, Colm"]
[Black "Baburin, Alexander"]
[Result "1/2-1/2"]
[ECO "B30"]
[WhiteElo "2190"]
[BlackElo "2400"]
[Annotator "RC"]
[PlyCount "154"]
[EventDate "2022.07.05"]
[EventType "swiss"]
[EventCountry "IRL"]
[SourceTitle "playchess.com"]
[Source "ChessBase"]
[SourceQuality "1"]
[TimeControl "40/6300+30:1800+30"]

1. e4 {[%emt 0:28:41]} c5 {[%emt 0:00:10]} 2. Nf3 {[%emt 0:08:16]} g6 {[%emt 0:00:14]} 3. Be2 {[%emt 0:05:35]} Bg7 {[%emt 0:00:47]} 4. O-O {[%emt 0:00:07]} Nf6 {[%emt 0:05:08]} 5. d3 {[%emt 0:08:34]} O-O {[%emt 0:02:38]} 6. c3 {[%emt 0:00:39]} Nc6 {[%emt 0:01:01]} 7. Nbd2 {[%emt 0:00:09]} d5 {[%emt 0:09:45]} 8. e5 {[%emt 0:02:57]} Ne8 {[%emt 0:17:55]} 9. d4 {[%emt 0:00:11]} cxd4 {[%emt 0:00:34]} 10. cxd4 {[%emt 0:00:08]} Nc7 {[%emt 0:04:31]} 11. Re1 {[%emt 0:07:07]} f6 {[%emt 0:05:08]} 12. exf6 {[%emt 0:00:28]} exf6 {[%emt 0:00:30]} 13. Nb3 {[%emt 0:03:50]} Qd6 {[%emt 0:11:29]} 14. Bd2 {[%emt 0:05:45]} b6 {[%emt 0:04:07]} 15. Rc1 {[%emt 0:01:26]} Bd7 {[%emt 0:00:39]} 16. a3 {[%emt 0:03:00]} Rfe8 {[%emt 0:01:37]} 17. h3 {[%emt 0:00:15]} Rac8 {[%emt 0:03:27]} 18. Rc3 {[%emt 0:03:04]} Ne6 {[%emt 0:05:06]} 19. Ba6 {[%emt 0:01:51]} Rcd8 {[%emt 0:02:31]} 20. Qc1 {[%emt 0:01:43]} f5 {[%emt 0:08:40]} 21. Bb5 {[%emt 0:13:58]} Nexd4 {[%emt 0:06:58]} 22. Nfxd4 {[%emt 0:03:58]} Rxe1+ {[%emt 0:06:25]} 23. Bxe1 {[%emt 0:02:59]} Nxd4 {[%emt 0:01:21]} 24. Nxd4 {[%emt 0:00:19]} Bxd4 {[%emt 0:00:11]} 25. Rd3 {[%emt 0:00:11]} Qc5 {[%emt 0:10:47]} 26. Qd1 {[%emt 0:07:16]} Bxb5 {[%emt 0:00:28]} 27. Rxd4 {[%emt 0:00:08]} Qe7 {[%emt 0:02:30]} 28. Rxd5 {[%emt 0:02:15]} Rd7 {[%emt 0:00:06]} 29. Bb4 {[%emt 0:01:11]} Qe6 {[%emt 0:00:09]} 30. Rxd7 {[%emt 0:00:55]} Bxd7 {[%emt 0:00:05]} 31. Bc3 {[%emt 0:00:10]} Kf7 {[%emt 0:01:18]} 32. Qd4 {[%emt 0:00:06]} h5 {[%emt 0:00:35]} 33. f3 {[%emt 0:00:52]} Ke7 {[%emt 0:00:33]} 34. Qg7+ {[%emt 0:00:08]} Qf7 {[%emt 0:01:35]} 35. Qe5+ {[%emt 0:01:06]} Kd8 {[%emt 0:00:39]} 36. Qb8+ {[%emt 0:00:33]} Bc8 {[%emt 0:00:04]} 37. Qd6+ {[%emt 0:00:10]} Bd7 {[%emt 0:00:16]} 38. Bf6+ {[%emt 0:00:14]} Kc8 {[%emt 0:00:05]} 39. Be5 {[%emt 0:00:06]} Kb7 {[%emt 0:00:56]} 40. Kh2 {[%emt 0:02:37]} Ka6 {[%emt 0:00:50]} 41. h4 {[%emt 0:30:29]} Qe6 {[%emt 0:31:25]} 42. Qd4 {[%emt 0:00:55]} Bc6 {[%emt 0:00:00]} 43. Kg3 {[%emt 0:00:00]} Kb7 {[%emt 0:00:00]} 44. Bf4 {[%emt 0:00:00]} Qe1+ {[%emt 0:00:00]} 45. Kh3 {[%emt 0:00:00]} Qh1+ {[%emt 0:00:00]} 46. Bh2 {[%emt 0:00:00]} f4 {[%emt 0:00:00]} 47. Qd6 {[%emt 0:02:57]} a5 {[%emt 0:00:00]} 48. Qxf4 {[%emt 0:01:14]} Bd7+ {[%emt 0:00:00]} 49. g4 {[%emt 0:00:02]} Qf1+ {[%emt 0:00:00]} 50. Kg3 {[%emt 0:00:06]} Qe1+ {[%emt 0:00:25]} 51. Kg2 {[%emt 0:00:11]} Qe2+ {[%emt 0:00:39]} 52. Kg3 {[%emt 0:01:34]} Bc6 {[%emt 0:04:08]} 53. gxh5 {[%emt 0:00:10]} gxh5 {[%emt 0:00:33]} 54. Qf7+ {[%emt 0:00:14]} Ka6 {[%emt 0:00:05]} 55. Qxh5 {[%emt 0:00:09]} Qxb2 {[%emt 0:01:15]} 56. Qf5 {[%emt 0:00:47]} Qxa3 {[%emt 0:00:34]} 57. h5 {[%emt 0:00:35]} Qe3 {[%emt 0:00:23]} 58. Qf6 {[%emt 0:00:37]} Qe1+ {[%emt 0:00:43]} 59. Kg4 {[%emt 0:00:24]} Bd7+ {[%emt 0:00:29]} 60. Kg5 {[%emt 0:00:15]} Qd2+ {[%emt 0:00:35]} 61. Bf4 {[%emt 0:00:35]} Qg2+ {[%emt 0:00:20]} 62. Kh6 {[%emt 0:01:05]} Qxf3 {[%emt 0:00:09]} 63. Qe5 {[%emt 0:00:29]} Qg4 {[%emt 0:00:39]} 64. Qb8 {[%emt 0:00:35]} Bc6 {[%emt 0:00:50]} 65. Qd6 {[%emt 0:00:40]} Bf3 {[%emt 0:01:04]} 66. Qe5 {[%emt 0:00:28]} a4 {[%emt 0:01:09]} 67. Bc1 {[%emt 0:00:53]} Qxh5+ {[%emt 0:00:44]} 68. Qxh5 {[%emt 0:00:13]} Bxh5 {[%emt 0:00:03]} 69. Kxh5 {[%emt 0:00:15]} Kb5 {[%emt 0:00:05]} 70. Kg4 {[%emt 0:00:50]} Kc4 {[%emt 0:00:13]} 71. Kf3 {[%emt 0:00:10]} Kd3 {[%emt 0:00:30]} 72. Ba3 {[%emt 0:00:28]} b5 {[%emt 0:00:12]} 73. Be7 {[%emt 0:00:25]} Kc3 {[%emt 0:00:36]} 74. Ke2 {[%emt 0:00:09]} Kb3 {[%emt 0:00:23]} 75. Kd2 {[%emt 0:00:18]} a3 {[%emt 0:00:03]} 76. Kc1 {[%emt 0:00:15]} b4 {[%emt 0:00:32]} 77. Kb1 {[%emt 0:00:18]} Ka4 {[%emt 0:00:15]} 1/2-1/2

[Event "101st Irish Championship 2022"]
[Site "Dublin"]
[Date "2022.07.08"]
[Round "7.5"]
[White "Kennedy, John"]
[Black "Flynn, Jacob"]
[Result "0-1"]
[ECO "A04"]
[WhiteElo "2047"]
[BlackElo "2199"]
[Annotator "RC"]
[PlyCount "80"]
[EventDate "2022.07.05"]
[EventType "swiss"]
[EventCountry "IRL"]
[SourceTitle "playchess.com"]
[Source "ChessBase"]
[SourceQuality "1"]
[TimeControl "40/6300+30:1800+30"]

1. Nf3 {[%emt 0:00:02]} Nf6 {[%emt 0:00:14]} 2. g3 {[%emt 0:00:04]} c5 {[%emt 0:00:36]} 3. Bg2 {[%emt 0:00:04]} Nc6 {[%emt 0:00:05]} 4. d4 {[%emt 0:00:11]} cxd4 {[%emt 0:00:06]} 5. Nxd4 {[%emt 0:00:03]} e5 {[%emt 0:00:14]} 6. Nxc6 {[%emt 0:00:05]} bxc6 {[%emt 0:01:54]} 7. O-O {[%emt 0:00:05]} Rb8 {[%emt 0:05:53]} 8. c4 {[%emt 0:01:06]} h5 {[%emt 0:03:50]} 9. h4 {[%emt 0:06:12]} Be7 {[%emt 0:10:20]} 10. Nc3 {[%emt 0:02:28]} Ng4 {[%emt 0:06:59]} 11. Ne4 {[%emt 0:33:13]} d5 {[%emt 0:07:35]} 12. cxd5 {[%emt 0:09:53]} cxd5 {[%emt 0:00:09]} 13. Ng5 {[%emt 0:02:34]} f6 {[%emt 0:03:18]} 14. Nh3 {[%emt 0:01:54]} Be6 {[%emt 0:06:43]} 15. Qc2 {[%emt 0:04:45]} Kf7 {[%emt 0:03:52]} 16. Rd1 {[%emt 0:06:33]} Qa5 {[%emt 0:06:49]} 17. e4 {[%emt 0:19:12]} d4 {[%emt 0:08:17]} 18. Bf1 {[%emt 0:06:39]} Rhc8 {[%emt 0:11:03]} 19. Qe2 {[%emt 0:00:40]} Bc4 {[%emt 0:11:59]} 20. Qf3 {[%emt 0:02:45]} g6 {[%emt 0:03:37]} 21. Bd2 {[%emt 0:04:50]} Qb5 {[%emt 0:01:28]} 22. Bxc4+ {[%emt 0:00:34]} Rxc4 {[%emt 0:01:27]} 23. Rab1 {[%emt 0:06:13]} Rc2 {[%emt 0:02:51]} 24. b4 {[%emt 0:00:40]} Rbc8 {[%emt 0:01:50]} 25. a4 {[%emt 0:02:58]} Qxa4 {[%emt 0:03:41]} 26. Qd3 {[%emt 0:00:03]} Qc6 {[%emt 0:01:46]} 27. f3 {[%emt 0:00:23]} Ne3 {[%emt 0:00:18]} 28. Bxe3 {[%emt 0:00:05]} Rc3 {[%emt 0:01:02]} 29. Qd2 {[%emt 0:00:39]} Rxe3 {[%emt 0:01:52]} 30. Rbc1 {[%emt 0:04:09]} Rc3 {[%emt 0:00:17]} 31. Rxc3 {[%emt 0:00:24]} Qxc3 {[%emt 0:00:13]} 32. Qa2+ {[%emt 0:00:36]} Qc4 {[%emt 0:00:56]} 33. Qxa7 {[%emt 0:00:55]} Qe2 {[%emt 0:01:48]} 34. Nf2 {[%emt 0:00:47]} Rc2 {[%emt 0:00:24]} 35. Rf1 {[%emt 0:00:12]} Qxf3 {[%emt 0:00:50]} 36. Qd7 {[%emt 0:00:48]} Qxg3+ {[%emt 0:00:41]} 37. Kh1 {[%emt 0:00:03]} Rxf2 {[%emt 0:01:04]} 38. Rxf2 {[%emt 0:00:20]} Qxf2 {[%emt 0:00:06]} 39. b5 {[%emt 0:00:11]} Qxh4+ {[%emt 0:00:17]} 40. Kg1 {[%emt 0:00:04]} Qg4+ {[%emt 0:00:07]} 0-1

[Event "101st Irish Championship 2022"]
[Site "Dublin"]
[Date "2022.07.08"]
[Round "7.6"]
[White "Cafolla, Peter"]
[Black "Venkatesan, Kavin"]
[Result "1/2-1/2"]
[ECO "B52"]
[WhiteElo "1937"]
[BlackElo "2076"]
[Annotator "NA RC"]
[PlyCount "56"]
[EventDate "2022.07.05"]
[EventType "swiss"]
[EventCountry "IRL"]
[SourceTitle "playchess.com"]
[Source "ChessBase"]
[SourceQuality "1"]
[TimeControl "40/6300+30:1800+30"]

1. e4 {[%emt 0:00:03]} c5 {[%emt 0:00:07]} 2. Nf3 {[%emt 0:00:06]} d6 {[%emt 0:00:07]} 3. Bb5+ {[%emt 0:00:08]} Bd7 {[%emt 0:00:53]} 4. Bxd7+ {[%emt 0:02:16]} Qxd7 {[%emt 0:01:13]} 5. O-O {[%emt 0:00:33]} Nf6 {[%emt 0:03:24]} 6. Re1 {[%emt 0:00:30]} Nc6 {[%emt 0:01:25]} 7. d4 {[%emt 0:02:27]} cxd4 {[%emt 0:00:32]} 8. Nxd4 {[%emt 0:00:08]} g6 {[%emt 0:02:42]} 9. c4 {[%emt 0:05:30]} Bg7 {[%emt 0:00:53]} 10. Nc3 {[%emt 0:01:10]} O-O {[%emt 0:01:53]} 11. f3 {[%emt 0:10:55]} Rac8 {[%emt 0:04:14]} 12. Be3 {[%emt 0:06:50]} Nxd4 {[%emt 0:07:38]} 13. Bxd4 {[%emt 0:06:03]} Rxc4 {[%emt 0:01:22]} 14. Bxa7 {[%emt 0:00:15]} b5 {[%emt 0:12:52]} 15. Bf2 {[%emt 0:06:42]} Qc6 {[%emt 0:10:18]} 16. Nd5 {[%emt 0:05:16]} Nxd5 {[%emt 0:02:03]} 17. exd5 {[%emt 0:00:54]} Qb7 {[%emt 0:04:00]} 18. b3 {[%emt 0:03:21]} Rf4 {[%emt 0:06:50]} 19. Rc1 {[%emt 0:02:42]} Rf5 {[%emt 0:01:07]} 20. Rc6 {[%emt 0:03:40]} e6 {[%emt 0:02:48]} 21. Rxd6 {[%emt 0:02:53]} Rxd5 {[%emt 0:00:39]} 22. Rxd5 {[%emt 0:00:10]} exd5 {[%emt 0:02:24]} 23. Bd4 {[%emt 0:01:03]} Bxd4+ {[%emt 0:19:48]} 24. Qxd4 {[%emt 0:00:12]} Qc6 {[%emt 0:04:32]} 25. Rd1 {[%emt 0:02:07]} Rd8 {[%emt 0:00:43]} 26. Re1 {[%emt 0:07:33]} Re8 {[%emt 0:05:11]} 27. Rxe8+ {[%emt 0:01:54]} Qxe8 {[%emt 0:00:03]} 28. Kf2 {[%emt 0:00:21]} Qc6 {[%emt 0:00:29]} 1/2-1/2

[Event "101st Irish Championship 2022"]
[Site "Dublin"]
[Date "2022.07.08"]
[Round "7.7"]
[White "O'Connell, Gerard"]
[Black "Mats, Diana"]
[Result "0-1"]
[ECO "E59"]
[WhiteElo "2052"]
[BlackElo "2028"]
[Annotator "NA RC"]
[PlyCount "52"]
[EventDate "2022.07.05"]
[EventType "swiss"]
[EventCountry "IRL"]
[SourceTitle "playchess.com"]
[Source "ChessBase"]
[SourceQuality "1"]
[TimeControl "40/6300+30:1800+30"]

1. d4 {[%emt 0:00:07]} Nf6 {[%emt 0:00:31]} 2. c4 {[%emt 0:00:06]} e6 {[%emt 0:00:18]} 3. Nc3 {[%emt 0:00:05]} Bb4 {[%emt 0:00:29]} 4. e3 {[%emt 0:00:13]} d5 {[%emt 0:00:47]} 5. Bd3 {[%emt 0:00:18]} O-O {[%emt 0:02:16]} 6. Nf3 {[%emt 0:00:28]} dxc4 {[%emt 0:01:52]} 7. Bxc4 {[%emt 0:00:24]} c5 {[%emt 0:00:42]} 8. O-O {[%emt 0:05:33]} Nc6 {[%emt 0:01:58]} 9. a3 {[%emt 0:00:29]} Bxc3 {[%emt 0:02:02]} 10. bxc3 {[%emt 0:00:13]} b6 {[%emt 0:01:20]} 11. dxc5 {[%emt 0:11:03]} bxc5 {[%emt 0:01:25]} 12. Qa4 {[%emt 0:06:24]} Qc7 {[%emt 0:02:10]} 13. e4 {[%emt 0:08:05]} Nxe4 {[%emt 0:10:37]} 14. Bd3 {[%emt 0:02:28]} Nd6 {[%emt 0:21:34]} 15. Bxh7+ {[%emt 0:18:23]} Kxh7 {[%emt 0:00:50]} 16. Qh4+ {[%emt 0:00:05]} Kg8 {[%emt 0:00:25]} 17. Ng5 {[%emt 0:00:05]} Re8 {[%emt 0:02:08]} 18. Qh7+ {[%emt 0:01:40]} Kf8 {[%emt 0:00:06]} 19. Qh8+ {[%emt 0:00:07]} Ke7 {[%emt 0:00:05]} 20. Qxg7 {[%emt 0:00:04]} Ba6 {[%emt 0:18:55]} 21. Nh7 {[%emt 0:04:56]} Bxf1 {[%emt 0:09:11]} 22. Bg5+ {[%emt 0:00:06]} Kd7 {[%emt 0:00:08]} 23. Nf6+ {[%emt 0:00:08]} Kc8 {[%emt 0:00:49]} 24. Nxe8 {[%emt 0:00:19]} Nxe8 {[%emt 0:00:11]} 25. Qf8 {[%emt 0:00:47]} Bd3 {[%emt 0:02:29]} 26. Qxe8+ {[%emt 0:00:18]} Kb7 {[%emt 0:00:42]} 0-1

[Event "101st Irish Championship 2022"]
[Site "Dublin"]
[Date "2022.07.08"]
[Round "7.8"]
[White "Liu, Jason"]
[Black "Keenan, Cathal"]
[Result "1-0"]
[ECO "B33"]
[WhiteElo "1746"]
[BlackElo "1811"]
[Annotator "NA RC"]
[PlyCount "75"]
[EventDate "2022.07.05"]
[EventType "swiss"]
[EventCountry "IRL"]
[SourceTitle "playchess.com"]
[Source "ChessBase"]
[SourceQuality "1"]
[TimeControl "40/6300+30:1800+30"]

1. e4 {[%emt 1:46:00]} c5 {[%emt 0:02:34]} 2. Nf3 {[%emt 0:00:00]} Nc6 {[%emt 0:00:09]} 3. d4 {[%emt 0:00:00]} cxd4 {[%emt 0:00:05]} 4. Nxd4 {[%emt 0:00:00]} Nf6 {[%emt 0:00:06]} 5. Nc3 {[%emt 0:00:00]} e5 {[%emt 0:00:09]} 6. Ndb5 {[%emt 0:00:00]} d6 {[%emt 0:00:07]} 7. Bg5 {[%emt 0:00:00]} a6 {[%emt 0:00:05]} 8. Na3 {[%emt 0:00:00]} b5 {[%emt 0:00:05]} 9. Nd5 {[%emt 0:00:00]} Be7 {[%emt 0:00:37]} 10. Bxf6 {[%emt 0:00:00]} Bxf6 {[%emt 0:00:05]} 11. c3 {[%emt 0:00:00]} O-O {[%emt 0:00:44]} 12. Nc2 {[%emt 0:00:00]} Rb8 {[%emt 0:00:05]} 13. h4 {[%emt 0:00:00]} g6 {[%emt 0:04:39]} 14. g3 {[%emt 0:00:00]} Bg7 {[%emt 0:01:16]} 15. Bg2 {[%emt 0:00:00]} Ne7 {[%emt 0:05:37]} 16. Nce3 {[%emt 0:00:00]} Be6 {[%emt 0:02:22]} 17. O-O {[%emt 0:00:00]} Bxd5 {[%emt 0:06:58]} 18. Nxd5 {[%emt 0:00:00]} Nxd5 {[%emt 0:00:44]} 19. Qxd5 {[%emt 0:00:00]} b4 {[%emt 0:05:39]} 20. c4 {[%emt 0:00:00]} Rc8 {[%emt 0:12:24]} 21. Rfd1 {[%emt 0:00:00]} Rc5 {[%emt 0:01:34]} 22. Qxd6 {[%emt 0:00:00]} Qxd6 {[%emt 0:01:01]} 23. Rxd6 {[%emt 0:00:00]} Rxc4 {[%emt 0:00:05]} 24. Rad1 {[%emt 0:00:00]} Rc2 {[%emt 0:06:25]} 25. Rxa6 {[%emt 0:00:00]} Rxb2 {[%emt 0:00:35]} 26. Ra7 {[%emt 0:00:00]} Rc8 {[%emt 0:04:36]} 27. Bh3 {[%emt 0:00:00]} Rf8 {[%emt 1:00:14]} 28. Rdd7 {[%emt 0:00:00]} Re2 {[%emt 0:00:00]} 29. Be6 {[%emt 0:00:00]} Rxe4 {[%emt 0:00:00]} 30. Bxf7+ {[%emt 0:00:00]} Rxf7 {[%emt 0:00:00]} 31. Rxf7 {[%emt 0:00:00]} Bf8 {[%emt 0:00:00]} 32. Rfd7 {[%emt 0:00:00]} Rc4 {[%emt 0:00:00]} 33. Rac7 {[%emt 0:00:00]} Rc3 {[%emt 0:00:00]} 34. Rxc3 {[%emt 0:00:00]} bxc3 {[%emt 0:00:00]} 35. Rc7 {[%emt 0:00:00]} Bb4 {[%emt 0:00:00]} 36. Kf1 {[%emt 0:00:00]} Kf8 {[%emt 0:00:00]} 37. Ke2 {[%emt 0:00:00]} e4 {[%emt 0:00:00]} 38. Rc4 {[%emt 0:00:00]} 1-0